Cogmind - Beta 11.1 @@@ ROGUE MODE // 2022.10.24 @ 13:29:17 Player: ILikeMonsters1890 Result: Destroyed by G-47 Trooper with Particle Gun Performance ------------- Evolutions (0) 0 Regions Visited (2) 400 Robots Destroyed (18) 90 Value Destroyed (218) 218 Prototype IDs (0) 0 Alien Tech Used (0) 0 Bonus (0) 0 TOTAL SCORE: 708 Bonus ------- None Cogmind --------- Core Integrity 0/250 Matter 300/300 Energy 125/125 System Corruption 4% Temperature Cool (9) Movement Rolling (80) Location -10/Mines Parts ------- > --- POWER (1) -------- Light Ion Engine > --- PROPULSION (2) --- Wheel > --- UTILITY (2) ------ Improved Heat Sink > --- WEAPON (2) ------- Mining Claw Mining Claw > --- INVENTORY (5) ---- Aluminum Leg Flight Unit Flight Unit Flight Unit Grenade Launcher Peak State ------------ > --- POWER ------------ Light Nuclear Core > --- PROPULSION ------- Wheel Wheel > --- UTILITY ---------- Improved Heat Sink Small Storage Unit > --- WEAPON ----------- Mining Claw Mining Claw > --- INVENTORY -------- Light Ion Engine Light Ion Engine Wheel Wheel Grenade Launcher Mining Claw [Rating: 11] Favorites ----------- Power Ion Engine Engine Ion Engine Power Core Light Nuclear Core Propulsion Wheel Wheel Wheel Utility Small Storage Unit Device Improved Heat Sink Storage Small Storage Unit Weapon Mining Claw Ballistic Gun Assault Rifle Slashing Weapon Mining Claw Build | -11 -10 -10 ------- Run | Scr Mat Min Slots Evolved . | . . . Power . | . . . Propulsion . | . . . Utility . | . . . Weapon . | . . . Parts Attached 22 | 10 3 9 Power 4 | 1 . 3 Engine 3 | 1 . 2 Core 1 | . . 1 Reactor . | . . . Propulsion 9 | 4 1 4 Treads . | . . . Leg . | . . . Wheel 9 | 4 1 4 Hover . | . . . Flight . | . . . Utility 4 | 3 . 1 Device 3 | 2 . 1 Storage 1 | 1 . . Processor . | . . . Hackware . | . . . Protection . | . . . Artifact . | . . . Weapon 5 | 2 2 1 Energy Gun . | . . . Energy Cannon . | . . . Ballistic Gun 2 | 2 . . Ballistic Cannon . | . . . Launcher . | . . . Special Weapon . | . . . Impact Weapon . | . . . Slashing Weapon 3 | . 2 1 Piercing Weapon . | . . . Special Melee Weapon . | . . . Unidentified Prototypes . | . . . Parts Lost 10 | . 1 9 Power 2 | . . 2 Propulsion 5 | . . 5 Utility 2 | . 1 1 Weapon 1 | . . 1 Highest Loss Streak 3 | . 1 3 To Critical Strikes . | . . . Average Slot Usage (%) 95 | . 96 95 Engine 8 | . 14 5 Core 4 | . . 6 Wheel 27 | . 28 27 Device 11 | . 11 11 Storage 13 | . 14 13 Ballistic Gun 3 | . 9 . Slashing Weapon 24 | . 18 28 Naked Turns . | . . . Heaviest Build 15 | 15 15 15 Greatest Support 32 | 32 20 20 Greatest Overweight (x) 1 | . . 1 Average Overweight (x) . | . . . Largest Inventory Capacity 8 | 8 8 8 Average Capacity 7 | 7 8 7 Most Carried 8 | 8 8 8 Average Carried 6 | 4 7 7 Final Capacity 8 | 8 8 5 Final Carried 8 | 8 8 5 Class Distribution -------------------- 61% | Mutant 38% | Scavenger-Mutant Dominant Class ---------------- Mutant | -10/Materials Scavenger-Mutant | -10/Mines Resources | -11 -10 -10 ----------- Run | Scr Mat Min Matter Collected 471 | 354 31 86 Remotely . | . . . Salvage Created 571 | 204 104 263 Parts 48 | 21 9 18 Haulers Intercepted . | . . . Recyclers Shooed . | . . . Parts Field Recycled . | . . . Retrieved Matter . | . . . Parts Self-Destructed . | . . . Prevented . | . . . Kills | -11 -10 -10 ------- Run | Scr Mat Min Combat Hostiles Destroyed 11 | . 2 9 Melee 11 | . 2 9 Classes Destroyed 7 | 3 2 2 Worker 2 | 2 . . Builder 1 | . 1 . Tunneler 4 | 4 . . Recycler 3 | 1 1 1 Swarmer 5 | . 2 3 Grunt 3 | . . 3 Assembled 3 | . . 3 Best Kill Streak 4 | 4 3 3 Combat Bots Only 3 | . 1 3 Max Kills in Single Turn 1 | 1 1 1 Gunslinging . | . . . Exploded . | . . . Melee 1 | . 1 1 Uniques/NPCs Destroyed . | . . . Combat | -11 -10 -10 -------- Run | Scr Mat Min Damage Taken 892 | . 205 687 Core 264 | . 58 206 Absorbed by Shields . | . . . Core Remaining (%) 100 | 100 . . Volleys Fired 10 | 9 1 . Largest 2 | 2 2 . Hottest 40 | 40 40 . Shots Fired 20 | 18 2 . Gun 20 | 18 2 . Cannon . | . . . Launcher . | . . . Special . | . . . Kinetic 20 | 18 2 . Thermal . | . . . Explosive . | . . . Electromagnetic . | . . . Robot Hit Streak 6 | 6 . . Robot Miss Streak 4 | 4 2 . Penetration Max . | . . . Secondary Targets . | . . . Shots Hit Robots 36 | 11 8 17 Core Hits 21 | 7 4 10 Critical Kills . | . . . Critical Parts Destroyed . | . . . Critical Strikes . | . . . Melee Attacks 51 | . 19 32 Impact . | . . . Slashing 51 | . 19 32 Piercing . | . . . Sneak Attacks 4 | . 3 1 Combat Hostiles . | . . . Follow-up Attacks 5 | . 3 2 Damage Inflicted 806 | 139 217 450 Guns 139 | 139 . . Cannons . | . . . Explosions . | . . . Melee 667 | . 217 450 Ramming . | . . . Kinetic 139 | 139 . . Thermal . | . . . Explosive . | . . . Electromagnetic . | . . . Impact . | . . . Slashing 667 | . 217 450 Piercing . | . . . Highest Corruption 4 | . . 4 Average Corruption 4 | . . 4 Corruption Purged . | . . . Corruption Blocked . | . . . Effects 5 | . . 5 Message Errors 1 | . . 1 Matter Fused 1 | . . 1 Heat Flow Errors 1 | . . 1 Energy Discharges 1 | . . 1 Data Loss (minor) 1 | . . 1 Overload Shots . | . . . Overflow Damage 21 | . 9 12 Projectiles . | . . . Explosions . | . . . Melee 21 | . 9 12 Knockbacks . | . . . Impact . | . . . Kinetic . | . . . Secondary . | . . . Self-Inflicted Damage . | . . . Shots . | . . . Rammed . | . . . Targets Rammed . | . . . Kicked . | . . . Crushed . | . . . Highest Temperature 189 | . . 189 Average Temperature 109 | . . 109 Received Heat Transfer 156 | . . 156 Siege Activations . | . . . Robots Corrupted . | . . . Combat Hostiles . | . . . Parts Fried . | . . . Impact Corruptions . | . . . Robots Melted . | . . . Combat Hostiles . | . . . Parts Melted . | . . . Heat Transferred . | . . . Parts Sabotaged . | . . . Parts Stolen . | . . . Parts Stripped . | . . . Power Chain Reactions . | . . . Missiles Intercepted . | . . . Alert | -11 -10 -10 ------- Run | Scr Mat Min Peak Influence 91 | 35 91 90 Initial 35 | . 22 35 Average 42 | 15 52 52 Maximum Alert Level . | . . . Low Security (%) 100 | 100 100 100 Level 1 . | . . . Level 2 . | . . . Level 3 . | . . . Level 4 . | . . . Level 5 . | . . . High Security . | . . . Max Security . | . . . Squads Dispatched . | . . . Investigation . | . . . Extermination . | . . . Reinforcement . | . . . Assault . | . . . Garrison . | . . . Intercept . | . . . Searches Triggered . | . . . Construction Impeded . | . . . Haulers Reinforced . | . . . Active Scanning Responses . | . . . Cargo Convoy Interrupts . | . . . Stealth | -11 -10 -10 --------- Run | Scr Mat Min Distress Signals . | . . . Communications Jammed . | . . . Distress Signals . | . . . Times Spotted 26 | . 6 20 Peak Tracking Total 5 | . 3 5 Tactical Retreats 1 | . . 1 Traps | -11 -10 -10 ------- Run | Scr Mat Min Traps Triggered . | . . . Indirectly . | . . . Trap Hack Attempts . | . . . Triggered . | . . . Disarmed . | . . . Reprogrammed . | . . . Reused . | . . . Traps Extracted . | . . . Installed . | . . . Triggered . | . . . Machines | -11 -10 -10 ---------- Run | Scr Mat Min Machines Disabled . | . . . Max in Single Turn . | . . . Machines Sabotaged . | . . . Garrisons Compromised . | . . . Overloaded Fab Kills . | . . . Hacking | -11 -10 -10 --------- Run | Scr Mat Min Machines Accessed 3 | . 3 . Terminals 3 | . 3 . Fabricators . | . . . Repair Stations . | . . . Recycling Units . | . . . Scanalyzers . | . . . Garrison Access . | . . . Total Hacks 7 | . 7 . Successful 1 | . 1 . Failed 6 | . 6 . Catastrophic . | . . . Database Lockouts . | . . . Manual . | . . . Terminals 7 | . 7 . Fabricators . | . . . Repair Stations . | . . . Recycling Units . | . . . Scanalyzers . | . . . Garrison Access . | . . . Terminal Hacks 1 | . 1 . Emergency Access Points 1 | . 1 . Fabricator Hacks . | . . . Repair Station Hacks . | . . . Recycling Unit Hacks . | . . . Scanalyzer . | . . . Garrison Access Hacks . | . . . Unauthorized Hacks . | . . . Terminals . | . . . Fabricators . | . . . Repair Stations . | . . . Recycling Units . | . . . Scanalyzers . | . . . Garrison Access . | . . . Data Cores Recovered . | . . . Used . | . . . Hacking Detections 3 | . 3 . Full Trace Events . | . . . Feedback Events . | . . . Feedback Blocked . | . . . Robot Schematics Acquired . | . . . Robots Built . | . . . Authchips . | . . . Time . | . . . Total Robot Build Rating . | . . . Part Schematics Acquired . | . . . Parts Built . | . . . Authchips . | . . . Time . | . . . Total Part Build Rating . | . . . Parts Repaired . | . . . Time . | . . . Parts Recycled . | . . . Recycled Matter . | . . . Retrieved Matter . | . . . Retrieved Components . | . . . Parts Scanalyzed . | . . . Part Schematics Acquired . | . . . Parts Damaged . | . . . Bothacking | -11 -10 -10 ------------ Run | Scr Mat Min Used RIF Installer . | . . . Robots Hacked . | . . . Non-combat . | . . . Combat . | . . . Robot Hacks Applied . | . . . Relay Couplers Released . | . . . Fabnet Peak Effective % . | . . . Robots Rewired . | . . . Allies Hacked . | . . . Hacks Repelled . | . . . Allies | -11 -10 -10 -------- Run | Scr Mat Min Total Allies 1 | . . 1 Largest Group 1 | . . 1 Highest-Rated Group 31 | . . 31 Highest-Rated Ally 31 | . . 31 Total Orders . | . . . Ally Attacks 12 | . . 12 Total Damage 85 | . . 85 Kills 3 | . . 3 Allies Corrupted . | . . . Allies Melted . | . . . Intel | -11 -10 -10 ------- Run | Scr Mat Min Robot Analysis Total . | . . . Derelict Logs Recovered 2 | . . 2 Drone Launches . | . . . Drone Recoveries . | . . . Exploration | -11 -10 -10 ------------- Run | Scr Mat Min Turns Passed 688 | 182 190 316 Spaces Moved 532 | 142 161 229 Core 15 | 15 . . Treads . | . . . Legs . | . . . Wheels 517 | 127 161 229 Hover . | . . . Flight . | . . . Fastest Speed 50 | 50 80 80 Average Speed 81 | 83 80 80 Slowest Speed 100 | 100 80 95 Overloaded Moves . | . . . Propulsion Burnouts . | . . . Robots Hopped . | . . . Cave-ins Triggered . | . . . Exploration Rate (%) 32 | 6 39 53 Regions Visited 2 Branch Regions 1 Pre-discovered Areas 1 | . . 1 Known Exits Taken . | . . . Unknown Exits Taken 2 | 1 1 . Scrap Searched . | . . . Spaces Dug . | . . . Terrain Destroyed . | . . . Melee . | . . . Projectile . | . . . AOE . | . . . Terrain Rammed . | . . . Walls Destroyed . | . . . Machines Disabled . | . . . Actions | -11 -10 -10 --------- Run | Scr Mat Min Total 681 | 190 189 302 Wait 26 | 1 . 25 Move 530 | 141 160 229 Hop . | . . . Pick Up 36 | 22 5 9 Fast Attach . | . . . Attach 15 | 7 . 8 Detach . | . . . Swap 7 | 3 3 1 Drop 13 | 7 5 1 Fire 10 | 9 1 . Melee 44 | . 15 29 Ram . | . . . Kick . | . . . Crush . | . . . Escape Stasis . | . . . Rewire . | . . . Trap . | . . . Miscellaneous . | . . . Route ------- -11/Scrapyard -10/Materials -10/Mines History --------- Turn | Location | Event 5 | -11/Scrapyard | Discovered new exit (range 15) 183 | -11/Scrapyard | Entered Materials 278 | -10/Materials | Discovered new exit (range 7) 312 | -10/Materials | Build established: Mutant 373 | -10/Materials | Entered Mines 409 | -10/Mines | Escorted by a lone wolf Derelict 427 | -10/Mines | Lost 3 parts (1p2n) 429 | -10/Mines | Learned location of Storage (-8) 443 | -10/Mines | Assembled infested the area 448 | -10/Mines | Assisted by a Guerilla fighting off Assembled 474 | -10/Mines | Core integrity fell below 50% 637 | -10/Mines | Learned 4 Materials zone layouts 665 | -10/Mines | Learned Materials garrison access intel 677 | -10/Mines | Core integrity fell below 20% 689 | -10/Mines | Destroyed by G-47 Trooper with Particle Gun Last Messages --------------- 00586_ Acquired Flight Unit. 00592_ System corrupted: Energy discharge (-27). 00606_ K-01 Serf collects debris. 00607_ |5S,UEWRT4R3D 87,KN%C3QBHHDF=ZH 00618_ K-01 Serf collects debris. 00637_ Acquired derelict log, extracted data. Data stored: Materials zone layouts (x4). 00652_ System corrupted: Matter fused (-6). 00665_ Acquired derelict log, extracted data. Data stored: Materials garrison access intel. 00671_ Sml. Storage Unit destroyed. 00680_ S-10 Pest destroyed. 00681_ Acquired 1 matter. 00683_ Mining Claw follow-up attack on S-10 Pest. 00683_ S-10 Pest destroyed. 00683_ Wheel destroyed. Map ----- +----------------------------------------------------+ | ????????????????????????????????????????????? | | ????????????????????????????????????????????? | | ????????????????????????????????????????????? | | ????????????????????????????????????????????? | | ????????????????????????????????????????????? | | ????????????????????????????????????????????? | | ????????????????????????????????????????????? | | ??????????????? ???????????????????????????? | | ?????????????? ???????????????????????????? | | ?????????????? ???????????????????????????? | | ?????????????? ???????????????????????????? | | ????????????? ???????????????????????????? | | ?????????????? #??????????????????????????? | | ?????????????? ??????????????????????????? | | ??????????????? #?????????????????????????? | | ??????????????? ?????????????????????????# | | ???????????????# #?????????????????????##### | | ??????????????## #????????????????????## | | ?????????????## #????????????????????# | | ?????????????# ##???????????????????# | | ?????????????# ##??????????????????## | | ??????????????? #???????????????????## | | ????????????????# ##???????????????????## | | ????????????????## = ##???????????????????## | | ?????????????????# *= #????????????###????# | | ?????????????????##%@s#????????????#"###### | | ??????????????????##[##????????#####% | | ???????????????????#g### ####??# % %####### | | ???????????????????#=g ## *%= ##????? | | ???????????????##### ### ####??# "#"##?###?# | | ???????????????# #????????##%%### ### ### | | ???????????????# #####????????#%%[%#"##"#""# | | ???????????????# #???????????## !! % | | ???????????????# #???????????# | | ???????????????# #???????????# %%######## | | ????????######## #???????????# % #??????## | | ????????# #???????????# "#???????# | | ????????# ########???????????## ##???????? | | ????????# #???????????????????## ##???????? | | ??##????# #####????????????????## ##??????? | | ??# # ## ##????????????????#"" ##?????? | | ??# """ #????????????###?### ##????? | | ??# """ ### #??????????## ##??# ###??? | | ??# """ ?# #??????????? #??## ##?? | | ??# ??# ##??????????? ##??## #?? | | ??# ???## ##??????????? ##??## #?? | | ??###?????## ##?????????? #???## ##?? | | ???????????## ##?????????# #????####??# | | ????????????# ########### #??????????## | | ????????????# #?????????????# | +----------------------------------------------------+ Best States ------------- Heat Dissipation 39 Energy Generation 14 Energy Capacity 250 Matter Stores 300 Matter Capacity 300 Sight Range 16 Terrain Scan Density 10 Evasion (%) 50 Item Schematics ----------------- None Robot Schematics ------------------ None Fabricated ------------ Nothing Alien Tech Used ----------------- None Achievements -------------- None Challenges ------------ None Game ------ Seed ThunderPhaseSubcomponent Manual? 0 Play Time 00:10:43 Cumulative 79.2 hours Start 2022.10.24 @ 13:19:21 End 2022.10.24 @ 13:29:17 Sessions 1 Manual Loads 0 Difficulty Rogue Special Mode None Game No. 89 Rogue 89 Adventurer 0 Explorer 0 Win Type - Total 0 Types 0/0/0/0/0/0/0/0/0 Lore% 56 Gallery% 45 Achievement% 39 Wizard Run 0 Options --------- ASCII 0 Keyboard 0 Movement Numpad Keybinds 0 Fullscreen 2 Font 18/SmallcapsGlow Map View 76x50 Tactical HUD 1 Map Filters NONE Filters NONE Steam 1 RUN: 8f102ee6-a90a-4e91-968b-20f82bb420a7